bitfinex/quotes_BTCUSD_20251221
["timestamp","ask_amount","ask_price","bid_price","bid_amount"]
[1766330391751,0.00572,87951.0,87950.0,0.02161163]
[1766330392112,0.005171,87951.0,87950.0,0.02161163]
[1766330392597,0.00552909,87951.0,87950.0,0.02161163]
[1766330393490,0.00552909,87951.0,87950.0,1.63e-06]
[1766330399004,0.00035809,87951.0,87950.0,1.63e-06]
[1766330399205,0.00607809,87951.0,87950.0,1.63e-06]
[1766330401986,0.40867809,87951.0,87941.0,0.41196508]
[1766330402193,0.4026,87950.0,87937.0,0.01137177]
[1766330402574,0.4026,87950.0,87938.0,0.01137164]
[1766330402823,0.4026,87949.0,87936.0,0.2665119]
[1766330403240,0.4026,87949.0,87936.0,0.25514]
[1766330403449,0.4026,87949.0,87936.0,0.2665119]
[1766330403829,0.4026,87949.0,87946.0,0.02271063]
[1766330404037,0.4026,87949.0,87946.0,0.02216163]
[1766330407514,0.4026,87949.0,87947.0,0.02271063]
[1766330407901,0.05685177,87948.0,87947.0,0.02271063]
[1766330408117,0.4026,87949.0,87947.0,0.02271063]
[1766330409172,0.4026,87949.0,87947.0,6.3e-07]
[1766330409399,0.57965,87949.0,87947.0,6.3e-07]
[1766330410707,0.579609,87949.0,87947.0,6.3e-07]
[1766330411166,0.37843,87948.0,87947.0,6.3e-07]
[1766330411390,0.37843,87948.0,87929.0,0.05686382]
[1766330411391,0.3776,87940.0,87921.0,0.27269384]
[1766330411586,0.01137216,87934.0,87931.0,0.02271063]
[1766330411818,0.38332,87933.0,87921.0,0.26132]
[1766330412027,0.00572,87933.0,87924.0,0.01137345]
[1766330412203,0.005171,87933.0,87924.0,0.40781]
[1766330412517,0.005171,87933.0,87924.0,0.68050345]
[1766330412717,0.005171,87933.0,87925.0,0.01137332]
[1766330412931,0.005171,87933.0,87924.0,0.68050345]
[1766330413102,0.005171,87933.0,87931.0,0.02271063]
[1766330413303,1e-06,87933.0,87931.0,0.28403063]
[1766330414039,0.01137074,87945.0,87931.0,0.28403063]
[1766330414200,0.04552,87941.0,87933.0,0.26132]
[1766330414592,0.04552,87941.0,87932.0,0.40781]
[1766330415265,0.01137164,87938.0,87932.0,0.40781]
[1766330415389,0.11374816,87941.0,87918.0,0.27269423]
[1766330415390,0.000549,87932.0,87918.0,0.27269423]
[1766330415590,0.000549,87932.0,87921.0,0.26132]
[1766330415591,0.00572,87931.0,87921.0,0.26132]
[1766330415831,0.00572,87931.0,87922.0,0.66913]
[1766330416141,0.00572,87931.0,87923.0,0.66913]
[1766330416321,0.00572,87931.0,87924.0,0.40781]
[1766330416525,0.00572,87931.0,87925.0,0.26132]
[1766330419553,0.00572,87930.0,87925.0,0.26132]
[1766330419864,0.00572,87929.0,87925.0,0.26132]
[1766330422359,0.01137203,87935.0,87925.0,0.26132]
[1766330422563,0.00572,87934.0,87931.0,0.02271063]
[1766330422879,0.00572,87933.0,87931.0,0.02216163]
[1766330425227,0.01137126,87941.0,87933.0,0.000549]
[1766330425378,0.05124,87938.0,87933.0,0.000549]
[1766330425579,0.06261164,87938.0,87931.0,0.02216163]
[1766330426002,0.43110164,87938.0,87931.0,0.02216163]
[1766330426208,0.41973,87938.0,87931.0,0.02216163]
[1766330426412,0.53852,87936.0,87920.0,0.01137397]
[1766330426604,0.19296,87933.0,87920.0,0.01137397]
[1766330426817,0.35128,87932.0,87921.0,0.01137384]
[1766330427184,0.35128,87932.0,87920.0,0.01137397]
[1766330427386,0.35128,87932.0,87921.0,0.01137384]
[1766330427582,0.35128,87932.0,87920.0,0.01137397]
[1766330427786,0.35128,87932.0,87921.0,0.01137384]
[1766330428824,0.35128,87932.0,87920.0,0.26230397]
[1766330430575,0.35128,87932.0,87921.0,0.01137384]
[1766330430718,0.35128,87932.0,87920.0,0.25093]
[1766330430901,0.35128,87932.0,87920.0,0.26230397]
[1766330432058,0.35128,87932.0,87920.0,0.25093]
[1766330432263,0.19064,87929.0,87917.0,0.02271063]
[1766330432436,0.19064,87929.0,87917.0,0.03408499]
[1766330432437,0.34236,87928.0,87917.0,0.03408499]
[1766330432623,0.34236,87928.0,87917.0,0.02271063]
[1766330433143,0.34236,87928.0,87917.0,0.03408499]
[1766330433344,0.34236,87928.0,87917.0,0.02271063]
[1766330434069,0.34736,87927.0,87917.0,0.02271063]
[1766330434299,0.19515,87927.0,87917.0,0.02271063]
[1766330434432,0.34093,87924.0,87917.0,0.02271063]
[1766330434840,0.34093,87924.0,87909.0,0.41797539]
[1766330434841,0.00572,87927.0,87891.0,0.65753]
[1766330434842,0.34058,87909.0,87891.0,0.65753]
[1766330435066,0.02271063,87904.0,87891.0,0.67217]
[1766330435230,0.00572,87903.0,87891.0,0.67217]
[1766330435429,0.00572,87903.0,87891.0,0.68354772]
[1766330435648,0.00572,87903.0,87895.0,0.01137721]
[1766330435649,0.005171,87903.0,87895.0,0.01137721]
[1766330435866,0.005171,87903.0,87898.0,0.26557]
[1766330436093,0.0682478,87915.0,87891.0,0.0001073]
[1766330436094,0.34602,87922.0,87907.0,0.26557]
[1766330436420,0.05069,87921.0,87914.0,0.39129]
[1766330436622,0.35739307,87927.0,87915.0,0.26557]
[1766330436623,0.00572,87920.0,87915.0,0.26557]
[1766330436746,0.00572,87920.0,87914.0,0.39129]
[1766330436949,0.00572,87920.0,87904.0,0.06825609]
[1766330436950,0.001099,87914.0,87902.0,0.0113763]
[1766330437149,0.00572,87913.0,87904.0,0.01137604]
[1766330437401,0.00572,87913.0,87903.0,0.26557]
[1766330438179,0.34496,87912.0,87900.0,0.01137656]
[1766330438386,0.34496,87912.0,87902.0,0.0113763]
[1766330438610,0.34496,87912.0,87902.0,0.6682363]
[1766330438754,0.34496,87912.0,87902.0,0.65686]
[1766330439193,0.34496,87912.0,87902.0,0.6682363]
[1766330439520,0.34496,87912.0,87902.0,0.65686]
[1766330439850,0.00572,87913.0,87903.0,0.27694617]
[1766330440052,0.00572,87913.0,87903.0,0.65686]
[1766330440407,0.00572,87913.0,87904.0,0.0002486]
[1766330440795,0.01709488,87913.0,87904.0,0.0002486]
[1766330440996,0.00572,87913.0,87904.0,0.0002486]
[1766330441306,0.01709488,87913.0,87904.0,0.0002486]
[1766330441716,0.07396953,87913.0,87904.0,0.0002486]
[1766330441937,0.01137501,87912.0,87904.0,6e-07]
[1766330442105,0.01709488,87913.0,87904.0,6e-07]
[1766330442306,0.01137501,87912.0,87904.0,6e-07]
[1766330442729,0.01137527,87910.0,87904.0,6e-07]
[1766330442902,0.0340859,87910.0,87904.0,6e-07]
[1766330443421,0.02271063,87910.0,87904.0,6e-07]
[1766330444024,0.01709488,87913.0,87904.0,6e-07]
[1766330444229,0.02271063,87910.0,87904.0,6e-07]
[1766330445274,0.01137501,87912.0,87904.0,6e-07]
[1766330445437,0.02271063,87910.0,87904.0,6e-07]
[1766330445834,0.4668014,87920.0,87904.0,6e-07]
[1766330445835,0.0113741,87919.0,87904.0,6e-07]
[1766330446171,0.0113741,87919.0,87906.0,0.26557]
[1766330446172,0.05124,87915.0,87906.0,0.26557]
[1766330446550,0.06824515,87919.0,87906.0,0.39129]
[1766330446551,0.0113741,87919.0,87906.0,0.39129]
[1766330446771,0.04552,87917.0,87909.0,0.65686]
[1766330447275,0.04552,87917.0,87904.0,6e-07]
[1766330447454,0.04552,87917.0,87904.0,0.3912906]
[1766330447627,0.04552,87917.0,87908.0,0.39129]
[1766330447829,0.04552,87917.0,87909.0,0.26557]
[1766330452282,0.04552,87917.0,87908.0,0.40266552]
[1766330452283,0.045272,87917.0,87911.0,0.65686]
[1766330452609,0.33498,87929.0,87912.0,0.01137501]
[1766330452758,0.33498,87929.0,87916.0,0.01137449]
[1766330452984,0.05124,87928.0,87921.0,0.01137384]
[1766330453185,0.15826,87934.0,87921.0,0.01137384]
[1766330453186,0.00572,87927.0,87921.0,0.26557]
[1766330453388,0.05124,87927.0,87915.0,0.27694462]
[1766330453607,0.05124,87927.0,87919.0,0.26557]
[1766330454184,0.05124,87927.0,87920.0,0.27694397]
[1766330454419,0.050691,87927.0,87920.0,0.26557]
[1766330454580,0.050691,87927.0,87919.0,0.4027714]
[1766330454581,0.00572,87926.0,87922.0,0.01137371]
[1766330454777,0.33435,87934.0,87922.0,0.01137371]
[1766330454778,0.00572,87925.0,87924.0,0.26557]
[1766330455328,0.00572,87925.0,87924.0,0.65686]
[1766330455935,0.00142239,87925.0,87924.0,0.65686]
[1766330456084,0.00406662,87925.0,87924.0,0.65686]
[1766330456283,0.04552,87933.0,87926.0,0.0113732]
[1766330456484,0.00572,87932.0,87927.0,0.26557]
[1766330456801,0.00572,87932.0,87927.0,0.65686]
[1766330460635,0.00572,87932.0,87927.0,0.656311]
[1766330461166,0.01137177,87937.0,87927.0,0.656311]
[1766330461167,0.01137061,87946.0,87927.0,0.01137307]
[1766330461365,0.01137061,87946.0,87920.0,0.4668014]
[1766330461366,0.04552,87938.0,87933.0,0.40266229]
[1766330461587,0.00572,87937.0,87933.0,0.39129]
[1766330461917,0.00572,87936.0,87933.0,0.39129]
[1766330462119,0.00572,87935.0,87933.0,0.39129]
[1766330462324,0.005171,87934.0,87933.0,0.39129]
[1766330465074,0.00189797,87934.0,87933.0,0.39129]
[1766330465634,0.00057492,87934.0,87933.0,0.64723]
[1766330465790,4.92e-06,87934.0,87933.0,0.64723]
[1766330471136,0.04552,87946.0,87940.0,0.25594]
[1766330471379,0.00572,87945.0,87940.0,0.255391]
[1766330471507,0.00572,87945.0,87939.0,0.39462]
[1766330471711,0.00572,87945.0,87939.0,0.39407]
[1766330472581,0.01136919,87957.0,87939.0,0.39407]
[1766330472582,0.04552,87949.0,87945.0,0.000549]
[1766330472790,0.00572,87948.0,87945.0,0.000549]
[1766330472986,0.00572,87948.0,87940.0,0.01137138]
[1766330473332,0.00572,87948.0,87941.0,0.25594]
[1766330474463,0.00572,87948.0,87942.0,0.01137113]
[1766330475660,0.00572,87948.0,87941.0,0.26731126]
[1766330475855,0.00572,87948.0,87941.0,0.25594]
[1766330477814,0.04552,87952.0,87948.0,0.000549]
[1766330478054,0.00572,87951.0,87948.0,0.000549]
[1766330478255,0.00572,87951.0,87945.0,0.39462]
[1766330478734,0.00572,87951.0,87945.0,0.40599074]
[1766330478942,0.80907849,87960.0,87951.0,0.001099]
[1766330478943,0.04552,87960.0,87951.0,0.001099]
[1766330479095,0.00572,87959.0,87952.0,0.65056]
[1766330480104,0.00572,87959.0,87953.0,0.65056]
[1766330481020,0.00035831,87960.0,87953.0,0.65056]
[1766330481201,0.00572,87959.0,87953.0,0.65056]
[1766330482208,0.00035831,87960.0,87953.0,0.65056]
[1766330482412,0.00562,87959.0,87958.0,0.25594]
[1766330482619,0.0001,87964.0,87958.0,0.25594]
[1766330482821,3.64e-06,87964.0,87960.0,0.39462]
[1766330483040,3.64e-06,87964.0,87956.0,0.06821538]
[1766330483041,0.00572,87963.0,87961.0,0.65056]
[1766330483778,0.00572,87963.0,87961.0,0.39462]
[1766330483957,0.02271063,87989.0,87956.0,0.01136932]
[1766330483958,6.8e-07,87976.0,87972.0,0.01136725]
[1766330484167,0.04552,87985.0,87974.0,0.65056]
[1766330484422,0.00572,87984.0,87975.0,0.01136686]
[1766330484608,0.00572,87984.0,87979.0,0.65056]
[1766330484807,0.00572,87984.0,87979.0,0.39462]
[1766330485090,0.00572,87984.0,87979.0,0.394071]
[1766330485852,0.04551535,87998.0,87983.0,0.01136583]
[1766330486016,0.04551535,87998.0,87970.0,0.69397921]
[1766330486017,0.04552,87993.0,87984.0,0.242769]
[1766330486211,0.04552,87993.0,87984.0,0.2530357]
[1766330486410,0.00572,87992.0,87984.0,0.24167]
[1766330487063,0.00572,87992.0,87985.0,0.61625]
[1766330490237,0.00055822,87986.0,87985.0,0.61625]
[1766330490474,0.00572922,87986.0,87985.0,0.61625]
[1766330495004,0.00572922,87986.0,87985.0,0.615701]
[1766330495227,0.00572922,87986.0,87985.0,0.37458]
[1766330495539,0.00572922,87986.0,87979.0,0.39548]
[1766330495721,0.00572,87986.0,87979.0,0.39548]
[1766330496953,0.00572,87986.0,87981.0,0.22593]
[1766330497618,0.00572,87986.0,87730.0,0.01782037]
[1766330497619,0.00572,87986.0,87982.0,0.39548]
[1766330497818,0.00572,87986.0,87983.0,0.39548]
[1766330504742,0.00572,87986.0,87974.0,0.05683432]
[1766330504743,0.05683174,87979.0,87963.0,0.22593]
[1766330504907,0.05683174,87979.0,87962.0,0.15746854]
[1766330504908,0.38868,87970.0,87962.0,0.1461]
[1766330505034,0.38868,87970.0,87954.0,0.22593]
[1766330505035,0.01136789,87967.0,87954.0,0.22593]
[1766330505244,0.01136789,87967.0,87946.0,0.01137061]
[1766330505245,0.38868,87960.0,87943.0,0.011371]
[1766330505488,0.38868,87960.0,87942.0,0.22593]
[1766330505489,0.46621541,87953.0,87942.0,0.22593]
[1766330505804,0.38811,87955.0,87942.0,0.22593]
[1766330505805,0.00572,87952.0,87943.0,0.011371]
[1766330506125,0.00572,87952.0,87944.0,0.01137087]
[1766330506643,0.00572,87952.0,87945.0,0.01137074]
[1766330506843,0.00572,87952.0,87947.0,0.01137048]
[1766330507071,0.00572,87952.0,87946.0,0.01137061]
[1766330507272,0.00572,87952.0,87944.0,0.01137087]
[1766330507468,0.00572,87952.0,87945.0,0.01137074]
[1766330507878,0.00572,87952.0,87946.0,0.01137061]
[1766330508393,0.00572,87952.0,87945.0,0.01137074]
[1766330508559,0.00572,87952.0,87946.0,0.01137061]
[1766330508767,0.00572,87952.0,87900.0,0.47771705]
[1766330508768,0.00572,87952.0,87922.0,0.00027131]
[1766330508769,0.01137203,87935.0,87922.0,0.00027131]
[1766330508978,0.46621541,87932.0,87922.0,0.00027131]
[1766330509441,0.39181,87934.0,87922.0,0.00027131]
[1766330509667,0.39181,87934.0,87922.0,0.01164502]
[1766330509876,0.01137151,87939.0,87922.0,0.01164502]
[1766330509877,0.04552,87946.0,87934.0,0.000549]
[1766330510076,0.04552,87946.0,87934.0,0.00064264]
[1766330510077,0.00572,87945.0,87934.0,0.00064264]
[1766330510274,0.00572,87945.0,87934.0,9.364e-05]
[1766330510637,0.00572,87945.0,87936.0,0.22593]
[1766330512342,0.00572,87944.0,87936.0,0.62141]
[1766330513403,0.06822149,87949.0,87934.0,9.364e-05]
[1766330513404,0.01137242,87954.0,87938.0,0.39548]
[1766330513552,0.01137242,87954.0,87934.0,0.46630905]
[1766330513553,0.39514,87976.0,87960.0,0.2372988]
[1766330513782,0.00572,87975.0,87963.0,0.39548]
[1766330514161,0.01136699,87974.0,87963.0,0.39548]
[1766330514715,0.01136725,87972.0,87963.0,0.39548]
[1766330514891,0.01136699,87974.0,87963.0,0.39548]
[1766330515091,0.07392154,87975.0,87963.0,0.39548]
[1766330515092,0.40095,87975.0,87963.0,0.39548]
[1766330515276,0.40095,87975.0,87964.0,0.06820919]
[1766330515488,0.005171,87975.0,87972.0,0.01136725]
[1766330515686,0.005171,87975.0,87971.0,0.01136738]
[1766330515894,0.00572,87974.0,87973.0,0.01136712]
[1766330516082,0.00572,87974.0,87970.0,0.22593]
[1766330517378,0.00572,87974.0,87970.0,0.23729751]
[1766330517638,0.00572,87974.0,87971.0,0.01136738]
[1766330518238,0.00572,87974.0,87970.0,0.22593]
[1766330518980,0.00572,87974.0,87962.0,0.06821069]
[1766330519093,0.00572,87974.0,87954.0,0.01136957]
[1766330519094,0.53365,87969.0,87954.0,0.01136957]
[1766330519298,0.3989,87968.0,87954.0,9.364e-05]
[1766330519571,0.3989,87968.0,87954.0,0.01146321]
[1766330520316,0.3989,87968.0,87956.0,0.01136932]
[1766330520516,0.3989,87968.0,87957.0,0.01136919]
[1766330520961,0.39216,87965.0,87954.0,9.364e-05]
[1766330521159,0.01136789,87967.0,87954.0,9.364e-05]
[1766330521160,0.39216,87962.0,87954.0,9.364e-05]
[1766330521369,0.00572,87961.0,87954.0,9.364e-05]
[1766330521589,0.00572,87961.0,87954.0,0.01146321]
[1766330521746,0.01136712,87973.0,87957.0,0.22593]
[1766330521946,0.05124,87972.0,87958.0,0.01136906]
[1766330522234,0.05124,87971.0,87958.0,0.01136906]
[1766330522466,0.44242,87971.0,87958.0,0.01136906]
[1766330522961,0.45378738,87971.0,87957.0,0.22593]
[1766330523362,0.44242,87971.0,87957.0,0.23729919]
[1766330523550,0.45378738,87971.0,87957.0,0.22593]
[1766330523751,0.44242,87971.0,87957.0,0.23729919]
[1766330524004,0.44242,87971.0,87956.0,0.40684932]
[1766330524005,0.05124,87971.0,87954.0,9.364e-05]
[1766330524177,0.05124,87971.0,87966.0,0.22593]
[1766330524376,0.05124,87971.0,87966.0,0.23729802]
[1766330524759,0.05124,87971.0,87966.0,0.22593]
[1766330524958,0.05124,87971.0,87967.0,0.01136789]
[1766330525163,0.05124,87971.0,87966.0,0.23729802]
[1766330525965,0.00572,87970.0,87966.0,0.23729802]
[1766330526787,0.00572,87970.0,87967.0,0.01136789]
[1766330526994,0.38851,87980.0,87967.0,0.01136789]
[1766330526995,0.38851,87980.0,87969.0,0.21741]
[1766330527177,0.05124,87979.0,87970.0,0.21741]
[1766330528276,0.38851,87983.0,87970.0,0.21741]
[1766330528489,0.38851,87983.0,87966.0,0.06820783]
[1766330528490,0.06819193,87987.0,87980.0,0.58267]
[1766330528491,0.00572,87982.0,87980.0,0.58267]
[1766330528690,0.04552,87987.0,87980.0,0.58267]
[1766330528895,0.00572,87986.0,87980.0,0.58267]
[1766330529708,0.39987454,87993.0,87980.0,0.58267]
[1766330530030,0.04552,87991.0,87980.0,0.58267]
[1766330530395,0.05688479,87991.0,87980.0,0.58267]
[1766330530788,0.04552,87991.0,87980.0,0.58267]
[1766330531489,0.04552,87991.0,87981.0,0.01136609]
[1766330531691,0.38851,87993.0,87983.0,0.01136583]
[1766330531932,0.0457774,87994.0,87988.0,0.21741]
[1766330532138,0.0457774,87994.0,87990.0,0.36526]
[1766330532342,0.03414812,88008.0,87993.0,0.21741]
[1766330532518,0.00572,88007.0,87994.0,0.21741]
[1766330532719,0.01136299,88005.0,87994.0,0.216861]
[1766330533084,0.00024818,88002.0,87993.0,0.36526]
[1766330533222,0.00572,88001.0,87993.0,0.36471]
[1766330538043,0.00572,88001.0,87994.0,0.21741]
[1766330538247,0.00572,88001.0,87992.0,0.36526]
[1766330538817,0.00010743,88008.0,88001.0,0.000549]
[1766330539035,0.00010743,88008.0,88000.0,0.58267]
[1766330539036,0.00572,88007.0,88000.0,0.58267]
[1766330541350,0.005171,88007.0,88001.0,0.21741]
[1766330542985,0.00010743,88008.0,88002.0,0.01136337]
[1766330543159,0.00572,88006.0,88002.0,0.01136337]
[1766330543499,0.00572,88006.0,88001.0,0.2287735]
[1766330544831,0.00572,88006.0,88001.0,0.21741]
[1766330544973,0.00572,88006.0,88002.0,0.36526]
[1766330545427,0.000549,88002.0,87998.0,0.21741]
[1766330545585,0.00572,88001.0,87995.0,0.37133428]
[1766330545990,0.00572,88001.0,87995.0,0.35997]
[1766330546842,0.00572,88001.0,87995.0,0.58019]
[1766330549628,0.00572,88001.0,87963.0,0.0066]
[1766330549629,0.36675,87994.0,87963.0,0.0066]
[1766330549850,0.36675,87994.0,87978.0,0.01136647]
[1766330549851,0.36675,87990.0,87978.0,0.01136647]
[1766330550043,0.36675,87990.0,87977.0,0.0113666]
[1766330550272,0.36675,87990.0,87976.0,0.23158673]
[1766330550827,0.36675,87990.0,87976.0,0.59155673]
[1766330551248,0.36675,87990.0,87976.0,0.58019]
[1766330551448,0.36675,87990.0,87976.0,0.59155673]
[1766330552085,0.36675,87990.0,87977.0,0.0113666]
[1766330552738,0.36675,87990.0,87978.0,0.01136647]
[1766330552962,0.36675,87990.0,87845.0,0.4871664]
[1766330552963,0.000549,87978.0,87972.0,0.01136725]
[1766330553142,0.000549,87978.0,87969.0,0.22022]
[1766330553143,0.006269,87978.0,87969.0,0.22022]
[1766330553598,0.00572,87978.0,87969.0,0.22022]
[1766330554214,0.00572,87978.0,87970.0,0.01136751]
[1766330554408,0.00572,87978.0,87969.0,0.23158764]
[1766330555055,0.00572,87978.0,87969.0,0.22022]
[1766330555256,0.000549,87969.0,87960.0,0.06821225]
[1766330555457,0.000549,87969.0,87962.0,0.01136854]
[1766330555771,0.00572,87970.0,87964.0,0.01136828]
[1766330556111,0.00572,87970.0,87966.0,0.01136802]
[1766330556528,0.00517,87970.0,87966.0,0.01136802]
[1766330557376,0.00517,87970.0,87964.0,0.22784]
[1766330558236,0.00517,87970.0,87963.0,0.0066]
[1766330558442,0.00517,87970.0,87960.0,0.0001]
[1766330558443,0.00055,87963.0,87960.0,0.0001]
[1766330558648,0.00055,87963.0,87960.0,0.00019364]
[1766330558850,0.51159,87970.0,87960.0,0.00019364]
[1766330559444,0.02271063,87969.0,87960.0,0.00019364]
[1766330559576,0.37107,87969.0,87960.0,0.00019364]
[1766330560630,0.37107,87969.0,87960.0,0.01156244]
[1766330560831,0.37107,87969.0,87960.0,0.00019364]
[1766330562460,0.37107,87969.0,87960.0,0.01156244]
[1766330563720,0.37107,87969.0,87961.0,0.01136867]
[1766330563925,0.37107,87969.0,87962.0,0.01136854]
[1766330564580,0.00517,87970.0,87964.0,0.01136828]
[1766330564793,0.00517,87970.0,87965.0,0.01136815]
[1766330565013,0.00517,87970.0,87964.0,0.01136828]
[1766330565224,0.00517,87970.0,87965.0,0.01136815]
[1766330565433,0.00517,87970.0,87964.0,0.01136828]
[1766330565641,0.00517,87970.0,87963.0,0.01136841]
[1766330565930,0.00517,87970.0,87963.0,0.23920841]
[1766330566389,0.14251634,87979.0,87964.0,0.01136828]
[1766330566539,0.00572,87978.0,87973.0,0.59585]
[1766330566745,0.0001,87980.0,87973.0,0.59585]
[1766330567129,0.05682361,87992.0,87963.0,0.2273681]
[1766330567130,0.05688466,87992.0,87977.0,0.2392066]
[1766330567312,0.00572,87988.0,87979.0,0.22784]
[1766330567910,0.00572,87988.0,87979.0,0.59585]
[1766330569949,0.01136466,87992.0,87979.0,0.59585]
[1766330570145,0.00572,87991.0,87979.0,0.59585]
[1766330570316,0.01136505,87989.0,87979.0,0.59585]
[1766330570521,0.01136492,87990.0,87979.0,0.59585]
[1766330571013,0.01708479,87991.0,87979.0,0.59585]
[1766330571221,0.00572,87991.0,87979.0,0.59585]
[1766330571430,0.37679,87991.0,87979.0,0.59585]
[1766330572971,0.02271063,87998.0,87975.0,0.01136686]
[1766330572972,0.02271063,87998.0,87983.0,0.01136583]
[1766330573173,0.02271063,87998.0,87980.0,0.01363946]
[1766330573174,0.01136415,87996.0,87980.0,0.01136621]
[1766330573374,0.0001,87990.0,87980.0,0.59585]
[1766330573576,0.00572,87989.0,87980.0,0.59585]
[1766330573769,0.00572,87989.0,87981.0,0.22784]
[1766330574324,0.00572,87989.0,87981.0,0.23920609]
[1766330574503,0.00572,87989.0,87981.0,0.22784]
[1766330576429,0.000549,87981.0,87980.0,0.36801]
[1766330577193,0.00572,87989.0,87980.0,0.59585]
[1766330577610,0.00572,87989.0,87980.0,0.60721621]
[1766330577765,0.00572,87989.0,87980.0,0.59585]
[1766330577960,0.00572,87989.0,87980.0,0.60721621]
[1766330578374,0.00572,87989.0,87980.0,0.59585]
[1766330578597,0.00572,87989.0,87982.0,0.01136596]
[1766330578807,0.00572,87989.0,87983.0,0.01136583]
[1766330578987,0.00572,87989.0,87982.0,0.01136596]
[1766330579184,0.0001,87990.0,87984.0,0.22784]
[1766330579392,0.0001,87990.0,87975.0,0.22733473]
[1766330579393,0.04552,88002.0,87988.0,0.01136518]
[1766330579660,0.00572,88001.0,87991.0,0.59585]
[1766330579865,0.00572,88001.0,87992.0,0.22784]
[1766330580087,0.01136286,88006.0,87990.0,0.01136492]
[1766330580088,0.0004,88009.0,88005.0,0.22784]
[1766330580229,0.0004,88009.0,88005.0,0.226741]
[1766330580429,0.0004,88009.0,88004.0,0.01136311]
[1766330580671,0.0004,88009.0,88002.0,0.01136337]
[1766330580672,0.00050745,88009.0,88002.0,0.01136337]
[1766330580867,0.00050745,88009.0,88006.0,0.01136286]
[1766330581069,0.00050745,88009.0,88004.0,0.01136311]
[1766330581070,0.00050745,88009.0,88002.0,0.37937337]
[1766330581477,0.00050745,88009.0,88003.0,0.01136324]
[1766330581637,0.00050745,88009.0,88004.0,0.01136311]
[1766330581836,4.5e-07,88009.0,88004.0,0.01136311]
[1766330582061,4.5e-07,88009.0,88003.0,0.01136324]
[1766330582257,0.01136131,88018.0,87990.0,0.69321466]
[1766330582258,0.0004,88033.0,88016.0,0.36801]
[1766330582478,0.0004,88033.0,88006.0,0.02271063]
[1766330582479,0.00572,88032.0,88025.0,0.02271063]
[1766330582685,0.00075796,88033.0,88032.0,4.2e-05]
[1766330582966,0.05164,88038.0,88033.0,0.00055]
[1766330583182,0.05164,88038.0,88031.0,0.01135963]
[1766330583183,0.00050733,88037.0,88031.0,0.01135963]
[1766330583400,4.25e-06,88034.0,88030.0,0.60720976]
[1766330583601,0.00050733,88037.0,88030.0,0.60720976]
[1766330583783,0.00050733,88037.0,88030.0,0.59585]
[1766330583983,0.00050733,88037.0,88031.0,0.01135963]
[1766330584162,0.00050733,88037.0,88033.0,0.01135937]
[1766330584378,0.00050733,88037.0,88032.0,0.0113595]
[1766330584800,0.00050733,88037.0,88034.0,0.01135924]
[1766330585046,0.0004,88039.0,88037.0,4.2e-05]
[1766330585251,0.0004,88046.0,88039.0,0.0004]
[1766330585447,0.0004,88051.0,88046.0,0.000149]
[1766330585940,0.0004,88051.0,88041.0,0.40669834]
[1766330586108,0.0004,88051.0,88041.0,0.39534]
[1766330586612,0.0004,88051.0,88041.0,0.394833]
[1766330587033,0.0004,88051.0,88037.0,0.00572]
[1766330587034,0.01175705,88051.0,88037.0,0.00572]
[1766330587191,0.0004,88051.0,88037.0,0.01707886]
[1766330587400,0.0004,88051.0,88038.0,0.01758466]
[1766330587600,0.01175705,88051.0,88037.0,0.21487]
[1766330587802,0.38143,88049.0,88028.0,0.0568001]
[1766330587981,0.00572,88048.0,88032.0,0.2205095]
[1766330588186,0.00572,88048.0,88033.0,0.01135937]
[1766330588369,0.01707744,88048.0,88033.0,0.22050937]
[1766330588569,0.00572,88048.0,88037.0,0.01135886]
[1766330588842,0.005171,88048.0,88038.0,0.06815208]
[1766330589036,0.005171,88048.0,88039.0,0.02271063]
[1766330589184,0.005171,88048.0,88040.0,0.01135847]
[1766330589390,0.005171,88048.0,88038.0,0.01135873]
[1766330589726,0.005171,88048.0,88040.0,0.02271063]
[1766330591275,0.000549,88040.0,88031.0,0.20915]
[1766330591448,0.38143,88032.0,88017.0,0.01136144]
[1766330591657,0.00572,88031.0,88022.0,0.01136079]
[1766330591819,0.00572,88031.0,88021.0,0.01136092]
[1766330592036,0.00572,88031.0,88023.0,0.01136066]
[1766330592640,0.00572,88031.0,88022.0,0.22051079]
[1766330592997,0.00572,88031.0,88023.0,0.01136066]
[1766330593354,0.00572,88031.0,88022.0,0.22051079]
[1766330593556,0.00572,88031.0,88022.0,0.20915]
[1766330594329,0.00572,88031.0,88017.0,0.06852644]
[1766330594330,0.01136208,88012.0,87993.0,0.06818694]
[1766330594533,0.01136208,88012.0,87990.0,0.20915]
[1766330594534,0.01136311,88004.0,87990.0,0.20915]
[1766330594776,0.62657503,88011.0,87981.0,0.01136609]
[1766330594777,0.38143,87999.0,87981.0,0.01136609]
[1766330594988,0.00572,87998.0,87982.0,0.0568298]
[1766330595195,0.00572,87998.0,87985.0,0.01136557]
[1766330595599,0.00572,87998.0,87987.0,0.01136531]
[1766330595805,0.00572,87998.0,87986.0,0.01136544]
[1766330596008,0.00572,87998.0,87984.0,0.0113657]
[1766330596328,0.00572,87998.0,87985.0,0.01136557]
[1766330596872,0.00572,87998.0,87986.0,0.01136544]
[1766330597074,0.00572,87998.0,87983.0,0.20915]
[1766330597634,0.00572,87998.0,87933.0,0.10193759]
[1766330597635,0.12399,87989.0,87972.0,0.01136725]
[1766330597837,0.38715,87988.0,87975.0,0.01136686]
[1766330598604,0.38715,87988.0,87977.0,0.0113666]
[1766330598804,0.38715,87988.0,87976.0,0.01136673]
[1766330599322,0.38715,87988.0,87975.0,0.01136686]
[1766330599756,0.38715,87988.0,87972.0,0.056836]
[1766330599757,0.000549,87975.0,87970.0,0.0001]
[1766330599915,0.000549,87975.0,87962.0,0.20915]
[1766330599916,0.00572,87974.0,87965.0,0.01136815]
[1766330600120,0.00572,87974.0,87966.0,0.01136802]
[1766330600121,0.00517,87974.0,87966.0,0.01136802]
[1766330600922,0.00517,87974.0,87966.0,0.06820802]
[1766330601146,0.00517,87974.0,87968.0,0.01136777]
[1766330601353,0.00517,87974.0,87969.0,0.01136764]
[1766330601504,0.00517,87974.0,87970.0,0.01136751]